bitfinex-derivatives/quotes_SOLF0:USTF0_20251107
["timestamp","ask_amount","ask_price","bid_price","bid_amount"]
[1762532445858,0.68,156.15,156.0,3.01]
[1762532446055,97.56976428,156.23,155.99,18.94529713]
[1762532446056,0.68,156.18,156.04,3.01]
[1762532446256,0.68,156.18,156.05,3.01]
[1762532446652,0.68,156.22,156.07,3.01]
[1762532446860,0.02030318,156.13,156.1,3.05943398]
[1762532447162,0.02030318,156.13,156.1,3.05721717]
[1762532447361,0.02030318,156.13,156.1,0.04721717]
[1762532447566,0.70030318,156.13,156.1,0.04721717]
[1762532447962,0.02030318,156.13,156.1,0.04721717]
[1762532449670,0.02030318,156.13,156.1,3.05721717]
[1762532450168,0.70030318,156.13,156.1,0.04721717]
[1762532450663,0.68,156.11,156.1,0.04721717]
[1762532450864,0.68,156.11,156.02,3.01]
[1762532451162,5.7708,156.08,156.02,3.01]
[1762532451362,0.68,156.11,155.97,12.50693432]
[1762532451667,0.68,156.11,155.98,3.01]
[1762532451965,0.0431759,156.06,156.02,0.04107013]
[1762532452654,0.7231759,156.06,156.02,0.04107013]
[1762532453061,5.772,156.04,156.02,0.04107013]
[1762532454066,0.0431759,156.06,156.02,3.05107013]
[1762532456158,0.0431759,156.06,156.02,0.04107013]
[1762532456362,0.7231759,156.06,156.02,0.04107013]
[1762532456671,0.0431759,156.06,156.02,3.05107013]
[1762532456862,5.8146759,156.06,156.02,0.04107013]
[1762532457069,0.0431759,156.06,156.02,0.04107013]
[1762532457371,5.8145759,156.06,156.02,3.05107013]
[1762532457580,0.0431759,156.06,156.02,3.05107013]
[1762532458074,0.7231759,156.06,156.02,0.04107013]
[1762532458563,5.7722,156.04,156.02,0.04107013]
[1762532459166,0.0431759,156.06,156.02,0.04107013]
[1762532459372,0.0431759,156.06,156.02,3.05107013]
[1762532460364,0.68,156.15,156.02,3.05107013]
[1762532460572,0.68,156.12,156.02,3.01]
[1762532460772,0.68,156.12,156.0,3.01]
[1762532461368,0.02434445,156.08,156.04,3.05679163]
[1762532461873,0.68,156.17,156.04,3.05679163]
[1762532462059,0.68,156.17,156.04,3.01]
[1762532462873,0.68,156.17,156.09,0.04901456]
[1762532463268,0.68,156.17,156.09,2.98901456]
[1762532464072,0.67,156.22,156.09,2.98901456]
[1762532464372,0.67,156.22,156.14,0.04201939]
[1762532464565,0.67,156.22,156.14,2.98201939]
[1762532465071,5.7673,156.17,156.14,0.04201939]
[1762532465266,0.67,156.24,156.14,2.98201939]
[1762532465459,0.67,156.24,156.14,2.94]
[1762532465768,0.67,156.28,156.17,2.982517]
[1762532465973,0.67,156.28,156.17,2.94]
[1762532466272,5.7642,156.25,156.21,0.04063696]
[1762532466466,0.67,156.28,156.21,0.04063696]
[1762532466870,0.67,156.25,156.21,0.04063696]
[1762532467471,0.67,156.25,156.12,2.94]
[1762532467472,5.7662,156.2,156.12,2.94]
[1762532467667,0.67,156.25,156.12,2.94]
[1762532467974,5.7649,156.23,156.14,2.94]
[1762532468166,0.67,156.25,156.14,2.94]
[1762532468578,0.03959916,156.21,156.18,2.98225749]
[1762532468967,0.03959916,156.21,156.18,0.04225749]
[1762532469162,0.67,156.19,156.1,2.94]
[1762532469672,0.67,156.23,156.1,2.94]
[1762532469865,21.02513432,156.26,156.1,2.94]
[1762532469866,0.67,156.21,156.1,2.94]
[1762532470274,0.71360421,156.17,156.14,0.04465838]
[1762532470665,0.04360421,156.17,156.14,0.04465838]
[1762532470866,0.71360421,156.17,156.14,0.04465838]
[1762532471372,5.7675,156.16,156.14,0.04465838]
[1762532471570,0.04360421,156.17,156.14,0.04465838]
[1762532471770,0.04360421,156.17,156.14,2.98465838]
[1762532473270,0.04360421,156.17,156.14,0.04465838]
[1762532473578,6.4378,156.16,156.14,0.04465838]
[1762532473778,5.7678,156.16,156.14,0.04465838]
[1762532473964,6.4378,156.16,156.14,0.04465838]
[1762532474168,0.67,156.15,156.14,0.04465838]
[1762532474469,0.67,156.15,156.04,2.94]
[1762532475369,0.67,156.14,156.04,2.94]
[1762532475680,0.71585283,156.11,156.07,0.04407669]
[1762532475878,0.71136403,156.11,156.07,0.04886391]
[1762532476084,5.7703,156.09,156.07,0.04886391]
[1762532476576,5.81086403,156.11,156.07,0.04886391]
[1762532476778,0.04136403,156.11,156.07,2.98886391]
[1762532477082,0.71136403,156.11,156.07,0.04886391]
[1762532477570,5.7701,156.1,156.07,0.04886391]
[1762532477775,0.71136403,156.11,156.07,0.04886391]
[1762532478169,0.67,156.08,155.98,2.94]
[1762532478782,0.67,156.09,155.98,2.94]
[1762532479183,0.67,156.09,156.0,2.94]
[1762532479380,0.04099743,156.05,156.02,0.04510674]
[1762532479576,0.04099743,156.05,156.03,2.94]
[1762532481787,5.86387927,156.17,156.04,2.94]
[1762532481977,0.71,156.18,156.04,2.94]
[1762532481978,4.77939001,156.16,156.04,2.94]
[1762532482178,0.71,156.18,156.04,2.94]
[1762532482388,4.78221317,156.17,156.06,2.94]
[1762532482586,4.78221317,156.16,156.09,2.94]
[1762532482779,0.04040951,156.14,156.11,0.04869153]
[1762532483079,0.04040951,156.14,156.12,2.94]
[1762532483278,0.04040951,156.14,156.11,0.04869153]
[1762532483882,0.75040951,156.14,156.11,0.04869153]
[1762532484087,0.71,156.12,156.02,343.07151976]
[1762532484383,4.71657829,156.11,156.03,2.94]
[1762532484585,5.86387927,156.16,156.04,2.94]
[1762532484887,5.86387927,156.15,156.09,2.94]
[1762532485084,0.0482942,156.14,156.1,2.98903873]
[1762532485286,0.0482942,156.14,156.12,2.94]
[1762532485487,0.0482942,156.14,156.13,10.94998281]
[1762532485688,3.23,156.18,156.13,8.00998281]
[1762532485876,3.23,156.18,156.14,8.00998281]
[1762532486080,3.23,156.18,156.15,8.281e-05]
[1762532486275,9.09387927,156.17,156.09,2.94]
[1762532486491,5.7681,156.15,156.09,2.94]
[1762532486686,0.04797601,156.14,156.1,2.9883487]
[1762532486889,0.04189193,156.14,156.1,2.9883487]
[1762532487080,0.04189193,156.14,156.13,2.94]
[1762532487577,0.04189193,156.14,156.1,2.9883487]
[1762532488785,0.04189193,156.14,156.1,0.0483487]
[1762532488987,3.27189193,156.14,156.1,0.0483487]
[1762532489286,0.04189193,156.14,156.1,2.9883487]
[1762532490993,9.04029193,156.14,156.1,0.0483487]
[1762532491192,3.27189193,156.14,156.1,0.0483487]
[1762532491493,8.9992,156.12,156.1,0.0483487]
[1762532491783,3.27189193,156.14,156.1,0.0483487]
[1762532492693,3.08,156.11,156.1,0.0483487]
[1762532493187,4.36,156.11,156.02,343.31151976]
[1762532493386,3.08,156.11,156.02,343.31151976]
[1762532494092,0.04515095,156.08,156.05,0.04462871]
[1762532494290,5.94967326,156.16,156.05,3.22462871]
[1762532494481,3.08,156.15,156.05,3.18]
[1762532494894,5.7688,156.13,156.05,3.18]
[1762532495278,0.047621,156.11,156.07,0.04852413]
[1762532495480,0.047621,156.11,156.07,3.22852413]
[1762532495677,0.047621,156.11,156.09,3.18]
[1762532495879,0.047621,156.11,156.07,3.22852413]
[1762532497090,0.047621,156.11,156.07,0.04852413]
[1762532497489,3.127621,156.11,156.07,0.04852413]
[1762532497882,5.7703,156.09,156.07,0.04852413]
[1762532498493,8.8503,156.09,156.07,0.04852413]
[1762532499394,8.897121,156.11,156.07,0.04852413]
[1762532499588,3.08,156.1,156.07,0.04852413]
[1762532500197,5.7703,156.09,156.07,0.04852413]
[1762532500494,8.7803,156.09,156.07,0.04852413]
[1762532501113,3.01,156.08,156.07,0.04852413]
[1762532501485,5.7703,156.09,156.07,0.04852413]
[1762532501989,0.047621,156.11,156.07,0.04852413]
[1762532502291,3.057621,156.11,156.07,0.04852413]
[1762532502491,0.047621,156.11,156.07,0.04852413]
[1762532503085,0.047621,156.11,156.07,3.15852413]
[1762532503498,0.047621,156.11,156.09,3.11]
[1762532503795,3.01,156.19,156.09,3.11]
[1762532504095,8.55012025,156.24,156.09,3.11]
[1762532504284,4.81908058,156.23,156.1,3.11]
[1762532504484,7.82908058,156.23,156.1,3.11]
[1762532504793,7.82908058,156.23,156.11,3.11]
[1762532504794,3.01,156.23,156.11,3.11]
[1762532505000,3.01,156.18,156.15,0.04558828]
[1762532505298,5.7675,156.16,156.15,0.04510613]
[1762532505501,0.04037375,156.19,156.15,0.04510613]
[1762532507493,3.05037375,156.19,156.15,0.04510613]
[1762532507696,3.01,156.17,156.09,3.11]
[1762532507903,3.01,156.16,156.04,3.11]
[1762532509005,0.04188805,156.12,156.08,0.0428187]
[1762532509204,0.04188805,156.12,156.08,3.1528187]
[1762532510207,3.01,156.21,156.11,3.11]
[1762532510799,5.7663,156.2,156.13,5.7685]
[1762532511298,5.7663,156.2,156.11,3.11]
[1762532511299,0.04730814,156.18,156.15,0.04297938]
[1762532511494,0.04730814,156.18,156.15,3.15297938]
[1762532511902,0.04730814,156.18,156.17,3.11]
[1762532512215,5.7648,156.24,156.17,3.11]
[1762532512505,3.01,156.26,156.18,5.7666]
[1762532512704,3.01,156.26,156.18,8.8766]
[1762532513100,0.04430521,156.24,156.2,0.04693954]
[1762532513297,3.01,156.33,156.2,3.15693954]
[1762532513598,3.01,156.33,156.2,3.11]
[1762532513804,5.7622,156.31,156.23,3.11]
[1762532514302,3.01,156.33,156.25,0.04882773]
[1762532514303,5.7626,156.3,156.25,0.04882773]
[1762532514511,8.7726,156.3,156.25,0.04882773]
[1762532514701,3.01,156.29,156.25,0.04882773]
[1762532514902,3.01,156.29,156.25,0.04046657]
[1762532515104,3.01,156.33,156.25,0.04046657]
[1762532515305,3.01,156.31,156.25,0.04046657]
[1762532515594,5.7636,156.27,156.25,0.04046657]
[1762532516003,3.01,156.31,156.25,0.04046657]
[1762532516700,11.5212,156.35,156.25,0.04046657]
[1762532516701,4.80741914,156.34,156.25,0.04046657]
[1762532516904,4.80741914,156.34,156.28,0.04914118]
[1762532517205,3.01,156.35,156.28,0.04914118]
[1762532517512,4.80741914,156.36,156.28,0.04914118]
[1762532517513,4.80741914,156.36,156.28,3.15914118]
[1762532517709,3.01,156.38,156.28,3.15914118]
[1762532518101,3.01,156.38,156.31,0.04365326]
[1762532518406,3.01,156.42,156.31,3.15365326]
[1762532518603,3.01,156.42,156.31,3.11]
[1762532518799,3.01,156.42,156.35,0.04560627]
[1762532519006,8.7697,156.38,156.35,0.04560627]
[1762532519203,3.01,156.38,156.35,0.04560627]
[1762532519504,5.54012025,156.44,156.35,0.04560627]
[1762532519505,8.7693,156.39,156.35,0.04560627]
[1762532519812,4.96107227,156.45,156.35,0.04560627]
[1762532519813,3.01,156.38,156.35,0.04560627]
[1762532520104,3.01,156.38,156.35,0.04273577]
[1762532520415,8.55012025,156.41,156.35,0.04273577]
[1762532521099,3.01,156.41,156.35,0.04273577]
[1762532521613,11.49646269,156.47,156.35,0.04273577]
[1762532521614,3.01,156.45,156.35,0.04273577]
[1762532521908,3.01,156.45,156.38,0.04818497]
[1762532522205,10.41752896,156.47,156.38,0.04818497]
[1762532522206,8.9379,156.43,156.38,0.04818497]
[1762532522708,3.18,156.43,156.38,0.04818497]
[1762532522908,3.18,156.46,156.38,0.04818497]
[1762532523512,5.7591,156.39,156.38,0.04818497]
[1762532523805,5.54012025,156.44,156.28,3.24]
[1762532524013,3.18,156.35,156.27,339.13598791]
[1762532524608,3.18,156.37,156.27,339.13598791]
[1762532524800,3.18,156.37,156.28,3.24]
[1762532525005,0.04772959,156.34,156.31,9.04946516]
[1762532525200,0.04312003,156.34,156.31,9.04518786]
[1762532525511,3.18,156.41,156.33,3.24]
[1762532525714,3.18,156.46,156.33,8.78012025]
[1762532526107,3.18,156.46,156.34,3.24]
[1762532526500,3.18,156.46,156.38,0.04220229]
[1762532526911,3.18,156.42,156.38,0.04220229]
[1762532527112,3.18,156.42,156.38,0.04277854]
[1762532527615,3.18,156.47,156.38,0.04277854]
[1762532527803,3.18,156.47,156.41,0.04875124]
[1762532528210,5.7576,156.44,156.41,0.04875124]
[1762532528408,3.18,156.48,156.41,0.04875124]
[1762532528708,5.7563,156.47,156.41,0.04875124]
[1762532528916,3.18,156.51,156.42,0.04548482]
[1762532529212,3.18,156.51,156.45,0.04417837]
[1762532529511,4.91098608,156.55,156.45,0.04417837]
[1762532529710,3.18,156.54,156.43,3.24]
[1762532530019,3.18,156.54,156.48,0.04081814]
[1762532530307,8.9338,156.54,156.48,0.04081814]
[1762532530503,3.18,156.54,156.48,0.04081814]
[1762532530706,3.18,156.53,156.48,0.04081814]
[1762532530907,5.7541,156.53,156.48,0.04081814]
[1762532531307,1.73098608,156.55,156.48,3.28081814]
[1762532531508,5.7538,156.54,156.48,3.28081814]
[1762532532909,3.18,156.54,156.48,0.04081814]
[1762532533911,5.7552,156.5,156.48,0.04081814]
[1762532534211,3.18,156.49,156.48,0.04081814]
[1762532534523,3.18,156.54,156.48,0.04081814]
[1762532535015,1.73098608,156.55,156.48,0.04081814]
[1762532536320,5.7541,156.53,156.48,3.28081814]
[1762532536713,8.9341,156.53,156.48,0.04081814]
[1762532536914,8.9349,156.51,156.48,0.04081814]
[1762532537114,1.73098608,156.55,156.48,0.04081814]
[1762532537319,3.18,156.5,156.48,0.04081814]
[1762532537513,8.9353,156.5,156.48,0.04081814]
[1762532537822,3.18,156.53,156.48,0.04081814]
[1762532538120,5.7544,156.52,156.48,0.04081814]
[1762532538518,4.91098608,156.55,156.48,0.04081814]
[1762532538725,3.18,156.54,156.48,0.04081814]
[1762532539809,7.27110633,156.55,156.48,0.04081814]
[1762532539810,8.9354,156.49,156.48,0.04081814]
[1762532541025,3.18,156.48,156.35,8.78012025]
[1762532541325,8.9359,156.48,156.36,3.24]
[1762532541827,0.04552692,156.44,156.42,3.24]
[1762532542327,0.04552692,156.44,156.43,3.24]
[1762532543227,0.04552692,156.44,156.41,0.04838363]
[1762532543618,3.18,156.52,156.41,3.28838363]
[1762532543820,5.7545,156.52,156.45,5.7567]
[1762532544219,3.18,156.54,156.44,3.24]
[1762532544421,1.73098608,156.55,156.44,3.24]
[1762532544622,1.73098608,156.55,156.48,3.28321806]
[1762532545730,7.48438608,156.55,156.48,3.28321806]
[1762532546228,5.7537,156.54,156.48,3.28321806]
[1762532546428,4.91098608,156.55,156.48,0.04321806]
[1762532546729,3.18,156.49,156.48,0.04321806]
[1762532546928,4.46,156.49,156.37,345.55594822]
[1762532547128,3.18,156.49,156.37,348.79594822]
[1762532547334,5.7564,156.47,156.4,5.7586]
[1762532547536,5.7564,156.47,156.38,3.24]
[1762532547734,5.7564,156.47,156.36,9.38946294]
[1762532547735,3.18,156.49,156.41,3.24]
[1762532548131,0.04083292,156.47,156.43,0.04538439]
[1762532549032,0.04083292,156.47,156.43,3.28538439]
[1762532549629,0.04083292,156.47,156.43,9.04288439]
[1762532549826,1.73098608,156.55,156.43,3.28538439]
[1762532550025,1.73098608,156.55,156.43,3.24]
[1762532550229,1.73098608,156.55,156.48,3.24]
[1762532550932,1.73098608,156.55,156.51,3.24]
[1762532551234,1.73098608,156.55,156.52,3.24]
[1762532551425,1.73098608,156.55,156.5,3.2837332]
[1762532552135,3.15,156.54,156.5,0.0437332]
[1762532552327,1.73098608,156.55,156.5,0.0437332]
[1762532552529,4.88098608,156.55,156.5,0.0437332]
[1762532552732,3.15,156.51,156.5,0.0437332]
[1762532552927,3.15,156.51,156.43,5.7575]
[1762532553433,3.15,156.51,156.42,3.05]
[1762532553739,3.15,156.49,156.41,2.81909]
[1762532553929,0.04508818,156.47,156.43,3.0961056]
[1762532554437,5.757,156.45,156.43,0.0461056]
[1762532554936,3.19508818,156.47,156.43,0.0461056]
[1762532555134,0.04508818,156.47,156.43,0.0461056]
[1762532556043,0.04508818,156.47,156.43,3.0961056]
[1762532556336,0.04508818,156.47,156.44,3.05]
[1762532557340,0.04508818,156.47,156.43,3.0961056]
[1762532558133,3.19508818,156.47,156.43,0.0461056]
[1762532558329,8.907,156.45,156.43,0.0461056]
[1762532558530,4.8186716,156.44,156.43,0.0461056]
[1762532558732,0.04508818,156.47,156.43,0.0461056]
[1762532558931,0.04508818,156.47,156.43,3.0961056]
[1762532559845,3.19508818,156.47,156.43,0.0461056]
[1762532560042,7.97213737,156.46,156.43,0.0461056]
[1762532560345,10.58001981,156.45,156.43,0.0461056]
[1762532560548,7.82301981,156.44,156.43,0.0461056]
[1762532560747,3.0,156.43,156.41,8.716e-05]
[1762532561042,13.64329407,156.42,156.41,8.716e-05]
[1762532561237,7.82301981,156.42,156.41,8.716e-05]
[1762532561933,4.82301981,156.42,156.41,8.716e-05]
[1762532562640,0.04715506,156.43,156.41,8.716e-05]
[1762532563039,0.04715506,156.43,156.41,3.04008716]
[1762532563446,5.82027426,156.5,156.41,3.04008716]
[1762532563646,4.83834782,156.49,156.41,3.04008716]
[1762532563945,4.83834782,156.48,156.41,8.79818716]
[1762532564148,4.83834782,156.47,156.41,8.79818716]
[1762532564342,4.83834782,156.46,156.42,3.08804253]
[1762532564543,0.04738536,156.46,156.42,3.08804253]
[1762532565145,0.04738536,156.46,156.45,3.04]
[1762532566048,3.0,156.54,156.45,3.04]
[1762532566247,1.73098608,156.55,156.45,3.04]
[1762532566248,4.77033737,156.53,156.45,3.04]
[1762532566439,1.73098608,156.55,156.45,3.04]
[1762532566642,3.0,156.53,156.45,3.04]
[1762532566943,7.76974158,156.52,156.47,0.04922497]
[1762532567141,8.7558,156.48,156.47,0.04922497]
[1762532567344,7.76974158,156.48,156.41,3.04008716]
[1762532567552,5.757,156.45,156.41,3.04008716]
[1762532567846,3.0,156.48,156.41,8.716e-05]
[1762532568046,4.77318538,156.47,156.41,8.716e-05]
[1762532568247,3.0,156.49,156.41,8.716e-05]
[1762532568438,3.04259486,156.47,156.43,0.04757459]
[1762532568649,3.0,156.45,156.43,0.04757459]
[1762532568846,4.95278282,156.44,156.43,0.04757459]
[1762532569849,0.04259486,156.47,156.43,0.04757459]
[1762532570039,3.04259486,156.47,156.43,0.04757459]
[1762532570245,3.0,156.45,156.43,0.04757459]
[1762532570447,10.7001467,156.44,156.43,0.04757459]
[1762532570847,4.94348363,156.44,156.43,0.04757459]
[1762532571159,3.04259486,156.47,156.43,0.04757459]
[1762532571160,5.7571,156.45,156.43,0.04757459]
[1762532571856,8.7571,156.45,156.43,0.04757459]
[1762532572850,0.04259486,156.47,156.43,0.04757459]
[1762532573257,3.04259486,156.47,156.43,0.04757459]
[1762532573453,7.89859658,156.46,156.43,0.04757459]
[1762532573758,3.0,156.46,156.43,0.04757459]
[1762532574164,0.04259486,156.47,156.43,3.08757459]
[1762532575951,0.04259486,156.47,156.43,0.04757459]
[1762532576259,0.04259486,156.47,156.43,3.08757459]
[1762532576848,3.0,156.46,156.43,0.04757459]
[1762532577053,0.04259486,156.47,156.43,0.04757459]
[1762532577463,8.79879486,156.47,156.43,0.04757459]
[1762532577661,5.79879486,156.47,156.43,0.04757459]
[1762532577960,3.04259486,156.47,156.43,0.04757459]
[1762532578159,5.7566,156.46,156.43,0.04757459]
[1762532578361,3.04259486,156.47,156.43,0.04757459]
[1762532578761,3.0,156.44,156.43,0.04757459]
[1762532578965,3.0,156.44,156.43,0.00018923]
[1762532579259,4.28,156.44,156.43,0.00018923]
[1762532579459,9.25877643,156.44,156.43,0.00018923]
[1762532579659,7.97877643,156.44,156.43,0.00018923]
[1762532579864,3.0,156.44,156.43,0.00018923]
[1762532580661,5.757,156.45,156.43,0.00018923]
[1762532580965,8.79889486,156.47,156.43,0.00018923]
[1762532581467,0.04259486,156.47,156.43,3.04018923]
[1762532582863,0.04259486,156.47,156.43,8.79758923]
[1762532583065,0.04259486,156.47,156.44,3.22]
[1762532583462,1.73098608,156.55,156.5,3.22]
[1762532584266,1.73098608,156.55,156.53,3.22]
[1762532584469,1.73098608,156.55,156.51,3.26551337]
[1762532584470,0.04155089,156.54,156.51,3.26551337]
[1762532584973,3.02155089,156.54,156.43,12.60946294]
[1762532585171,5.7551,156.5,156.43,3.22]
[1762532585474,2.98,156.52,156.43,3.22]
[1762532585769,4.97381801,156.54,156.45,3.22]
[1762532585975,1.73098608,156.55,156.45,3.22]
[1762532586164,0.04586102,156.51,156.48,0.04533357]
[1762532586367,0.04586102,156.51,156.49,3.22]
[1762532586766,1.73098608,156.55,156.49,3.22]
[1762532586966,1.73098608,156.55,156.48,3.26533357]
[1762532587376,1.73098608,156.55,156.52,3.22]
[1762532587872,1.77493821,156.55,156.52,3.26165428]
[1762532588072,1.77493821,156.55,156.54,3.22]
[1762532588264,2.98,156.66,156.54,3.22]
[1762532588866,2.98,156.71,156.56,3.22]
[1762532589074,4.96276894,156.7,156.6,3.22]
[1762532589270,4.96276894,156.74,156.64,3.22]
[1762532589472,2.98,156.76,156.67,0.04515294]
[1762532590174,2.98,156.76,156.67,3.26515294]
[1762532590375,2.98,156.8,156.67,3.26515294]
[1762532590577,5.7455,156.77,156.68,3.22]
[1762532590877,8.7255,156.77,156.72,0.04793038]
[1762532591269,5.7455,156.77,156.72,0.04793038]
[1762532591572,5.7444,156.79,156.72,0.04793038]
[1762532591772,2.98,156.8,156.68,12.60946294]
[1762532591773,2.98,156.8,156.68,3.22]
[1762532591963,2.98,156.77,156.74,0.04600728]
[1762532592165,9.00082462,156.87,156.68,3.22]
[1762532592166,2.98,156.81,156.68,3.22]
[1762532592368,2.98,156.81,156.71,3.22]
[1762532592570,2.98,156.81,156.73,0.04385063]
[1762532593378,2.98,156.74,156.63,3.22]
[1762532593674,2.98,156.74,156.56,3.22]
[1762532593873,2.98,156.74,156.6,3.22]
[1762532594364,5.7495,156.66,156.6,3.22]
[1762532594563,0.04488459,156.65,156.61,0.04813306]
[1762532595566,8.7304,156.63,156.61,0.04813306]
[1762532595764,2.98,156.62,156.61,0.04813306]
[1762532596166,0.04488459,156.65,156.52,3.22]
[1762532596371,2.98,156.67,156.53,9.38946294]
[1762532596677,2.98,156.72,156.58,3.22]
[1762532597278,2.98,156.66,156.63,0.04114447]
[1762532597480,0.0449046,156.67,156.63,0.04114447]
[1762532597673,2.98,156.75,156.63,3.26114447]
[1762532597873,2.98,156.75,156.63,3.22]
[1762532598385,2.98,156.75,156.63,65.22]
[1762532598677,2.98,156.75,156.65,5.7495]
[1762532598874,0.04634202,156.71,156.67,0.04502034]
[1762532599679,3.02634202,156.71,156.67,0.04502034]
[1762532600077,8.77394202,156.71,156.67,0.04502034]
[1762532600474,3.02634202,156.71,156.67,0.04502034]
[1762532600683,0.04634202,156.71,156.67,0.04502034]
[1762532600879,2.98,156.8,156.67,3.26502034]
[1762532601088,2.98,156.8,156.7,5.7474]
[1762532601578,2.98,156.8,156.68,3.22]
[1762532601976,2.98,156.8,156.72,0.04672194]
[1762532604083,2.98,156.86,156.72,3.26672194]
[1762532604379,2.98,156.87,156.77,0.04157938]
[1762532604780,2.98,156.87,156.8,0.04266649]
[1762532606977,8.47156126,156.87,156.8,0.04266649]
[1762532607180,2.98,156.81,156.69,8.71156126]
[1762532607481,2.98,156.81,156.7,3.22]
[1762532607686,7.20592309,156.88,156.73,3.22]
[1762532607978,2.98,156.86,156.76,3.22]
[1762532608187,0.04647726,156.83,156.79,0.04184346]
[1762532609183,0.04647726,156.83,156.79,3.26184346]
[1762532609387,3.02647726,156.83,156.79,0.04184346]
[1762532609682,2.98,156.8,156.79,0.04184346]
[1762532610876,3.02647726,156.83,156.79,0.04184346]
[1762532611277,0.04647726,156.83,156.79,3.26184346]
[1762532611476,3.02647726,156.83,156.79,0.04184346]
[1762532611872,2.98,156.8,156.79,0.04184346]
[1762532612072,5.744,156.81,156.79,0.04184346]
[1762532612477,0.04647726,156.83,156.79,0.04184346]
[1762532612980,2.97647726,156.83,156.79,0.04184346]
[1762532613178,2.93,156.8,156.7,3.12]
[1762532614082,2.93,156.8,156.71,8.8672]
[1762532614284,0.04370502,156.77,156.74,3.16621017]
[1762532614577,0.04057431,156.77,156.74,3.16157681]
[1762532614779,0.04057431,156.77,156.74,0.04157681]
[1762532615179,0.04057431,156.77,156.74,3.16157681]
[1762532617186,0.04057431,156.77,156.74,0.04157681]
[1762532617386,2.97057431,156.77,156.74,0.04157681]
[1762532617580,2.93,156.76,156.65,3.12]
[1762532618079,5.49156126,156.79,156.65,3.12]
[1762532618394,2.93,156.8,156.71,5.7472]
[1762532618587,2.93,156.8,156.74,0.04240032]
[1762532618588,0.04863188,156.77,156.74,0.04240032]
[1762532619387,2.97863188,156.77,156.74,0.04240032]
[1762532620290,2.97863188,156.77,156.64,339.72697855]
[1762532620490,5.7473,156.72,156.65,5.7495]
[1762532620687,3.23,156.73,156.64,339.72697855]
[1762532620988,3.23,156.73,156.6,2.95]
[1762532621178,3.23,156.73,156.61,2.95]
[1762532621379,0.04897242,156.69,156.65,0.04487131]
[1762532621694,3.23,156.66,156.65,0.04487131]
[1762532622495,5.7501,156.64,156.57,2.95]
[1762532622981,5.7507,156.63,156.55,5.7531]
[1762532623183,3.23,156.65,156.55,5.7531]
[1762532623383,0.04193786,156.62,156.58,2.99639362]
[1762532623587,0.04193786,156.62,156.58,0.04639362]
[1762532624089,3.27193786,156.62,156.58,0.04639362]
[1762532624283,0.04193786,156.62,156.58,0.04639362]
[1762532624987,3.27193786,156.62,156.58,0.04639362]
[1762532625187,3.23,156.6,156.58,0.04639362]
[1762532625393,3.27193786,156.62,156.58,0.04639362]
[1762532625786,9.251e-05,156.83,156.76,89.3743]
[1762532625985,5.49156126,157.02,156.82,5.49156126]
[1762532626298,5.7373,156.99,156.87,11.23316126]
[1762532626496,5.7373,156.99,156.87,8.44156126]
[1762532626698,0.04799046,156.95,156.91,0.04291904]
[1762532626997,0.04189269,156.95,156.92,4.65760022]
[1762532627192,0.04189269,156.95,156.93,4.65760022]
[1762532627399,89.177,157.12,156.94,4.65760022]
[1762532627596,89.1791,157.11,156.95,4.65760022]
[1762532627794,5.7363,157.02,156.96,4.65760022]
[1762532628098,0.72,157.01,156.97,4.65760022]
[1762532628301,0.04615622,157.01,156.98,4.65760022]
[1762532628493,0.04615622,157.01,156.97,0.04427725]
[1762532630300,5.7369,157.0,156.97,0.04427725]
[1762532630506,5.7369,157.0,156.97,2.99427725]
[1762532630705,0.04615622,157.01,156.97,2.99427725]
[1762532630896,0.04615622,157.01,156.97,8.48583851]
[1762532631202,5.7323,157.13,157.0,5.49156126]
[1762532631401,0.77,157.16,157.08,5.49156126]
[1762532631801,5.7324,157.13,157.06,5.49156126]
[1762532632301,0.04787495,157.11,157.08,0.04072998]
[1762532632496,0.81078911,157.11,157.08,0.04283435]